[Event "Early-Titled-Tuesday-Blitz-April-23-2024"]
[Site "Chess.com"]
[Date "2024.04.23"]
[Round "5"]
[White "JacksterThePro"]
[Black "arenal72"]
[Result "1/2-1/2"]
[WhiteElo "2476"]
[BlackElo "2619"]
[TimeControl "180+1"]
[EndTime "8:58:39 PDT"]
[Termination "Game drawn by repetition"]

1. d4 {[%clk 0:02:58.7]} 1... d6 {[%clk 0:02:57.9]} 2. Nf3 {[%clk 0:02:58.3]}
2... Nf6 {[%clk 0:02:55.3]} 3. c4 {[%clk 0:02:56.2]} 3... g6 {[%clk 0:02:55.5]}
4. Nc3 {[%clk 0:02:56.2]} 4... Bf5 {[%clk 0:02:55.3]} 5. g3 {[%clk 0:02:45.6]}
5... Bg7 {[%clk 0:02:50]} 6. Bg2 {[%clk 0:02:42.8]} 6... Ne4 {[%clk 0:02:49.5]}
7. Qb3 {[%clk 0:02:35.3]} 7... Nxc3 {[%clk 0:02:48.5]} 8. Qxc3 {[%clk
0:02:19.7]} 8... O-O {[%clk 0:02:40.8]} 9. Nh4 {[%clk 0:02:11.3]} 9... Bc8
{[%clk 0:02:29.4]} 10. Qd3 {[%clk 0:01:48]} 10... Nc6 {[%clk 0:02:24.4]} 11. d5
{[%clk 0:01:37.2]} 11... Ne5 {[%clk 0:02:13]} 12. Qc2 {[%clk 0:01:36.1]} 12...
c6 {[%clk 0:01:51.3]} 13. O-O {[%clk 0:01:19.4]} 13... cxd5 {[%clk 0:01:45.8]}
14. Bxd5 {[%clk 0:00:51]} 14... Qc7 {[%clk 0:01:41.3]} 15. Bf4 {[%clk 0:00:34]}
15... Be6 {[%clk 0:01:26.6]} 16. Bxe6 {[%clk 0:00:31]} 16... fxe6 {[%clk
0:01:27.5]} 17. Rac1 {[%clk 0:00:21.7]} 17... Rac8 {[%clk 0:01:21.3]} 18. b3
{[%clk 0:00:20.1]} 18... Qa5 {[%clk 0:01:04.6]} 19. Bxe5 {[%clk 0:00:17.6]}
19... Qxe5 {[%clk 0:01:01]} 20. Nf3 {[%clk 0:00:17.3]} 20... Qf5 {[%clk
0:01:00.7]} 21. Rfd1 {[%clk 0:00:11]} 21... Qxc2 {[%clk 0:00:58.6]} 22. Rxc2
{[%clk 0:00:11.2]} 22... Bf6 {[%clk 0:00:49.9]} 23. Rcd2 {[%clk 0:00:07.5]}
23... Kf7 {[%clk 0:00:48.9]} 24. Kg2 {[%clk 0:00:06.8]} 24... a6 {[%clk
0:00:46.9]} 25. h4 {[%clk 0:00:07.1]} 25... h6 {[%clk 0:00:46.2]} 26. Nd4 {[%clk
0:00:03.8]} 26... Rc5 {[%clk 0:00:35.8]} 27. a4 {[%clk 0:00:02.8]} 27... Bxd4
{[%clk 0:00:33.4]} 28. Rxd4 {[%clk 0:00:03.7]} 28... e5 {[%clk 0:00:30.9]} 29.
Rd5 {[%clk 0:00:03.5]} 29... Rfc8 {[%clk 0:00:30.7]} 30. Kf3 {[%clk 0:00:03.2]}
30... Ke6 {[%clk 0:00:26.1]} 31. Ke4 {[%clk 0:00:02.5]} 31... R5c6 {[%clk
0:00:21.5]} 32. a5 {[%clk 0:00:01.8]} 32... Rc5 {[%clk 0:00:20.5]} 33. Rxc5
{[%clk 0:00:01.5]} 33... Rxc5 {[%clk 0:00:20]} 34. Rd5 {[%clk 0:00:02.1]} 34...
Rc8 {[%clk 0:00:15]} 35. f3 {[%clk 0:00:01.5]} 35... g5 {[%clk 0:00:13.8]} 36.
hxg5 {[%clk 0:00:01.4]} 36... hxg5 {[%clk 0:00:14.2]} 37. g4 {[%clk 0:00:02.3]}
37... Rf8 {[%clk 0:00:14]} 38. e3 {[%clk 0:00:02.5]} 38... Rh8 {[%clk
0:00:13.8]} 39. Rd2 {[%clk 0:00:01.9]} 39... Rh1 {[%clk 0:00:13.3]} 40. Rb2
{[%clk 0:00:02.5]} 40... Kd7 {[%clk 0:00:11.5]} 41. b4 {[%clk 0:00:02.8]} 41...
Ke6 {[%clk 0:00:10.7]} 42. b5 {[%clk 0:00:02.2]} 42... Ra1 {[%clk 0:00:10.7]}
43. bxa6 {[%clk 0:00:02.3]} 43... bxa6 {[%clk 0:00:11.5]} 44. Rb6 {[%clk
0:00:01.9]} 44... Rxa5 {[%clk 0:00:11.8]} 45. f4 {[%clk 0:00:01.3]} 45... gxf4
{[%clk 0:00:11.1]} 46. exf4 {[%clk 0:00:02.2]} 46... exf4 {[%clk 0:00:11.4]} 47.
Kxf4 {[%clk 0:00:03.1]} 47... Ra4 {[%clk 0:00:10.4]} 48. Rc6 {[%clk 0:00:03.4]}
48... Kd7 {[%clk 0:00:10.7]} 49. Rb6 {[%clk 0:00:02.6]} 49... Rxc4+ {[%clk
0:00:10.9]} 50. Kf5 {[%clk 0:00:03.2]} 50... a5 {[%clk 0:00:09.4]} 51. Ra6
{[%clk 0:00:02.1]} 51... a4 {[%clk 0:00:07.2]} 52. g5 {[%clk 0:00:02.3]} 52...
Rc1 {[%clk 0:00:06.7]} 53. g6 {[%clk 0:00:01.6]} 53... Rf1+ {[%clk 0:00:06.9]}
54. Kg5 {[%clk 0:00:01.9]} 54... Rg1+ {[%clk 0:00:06.9]} 55. Kh6 {[%clk
0:00:02.1]} 55... Rg4 {[%clk 0:00:07.1]} 56. g7 {[%clk 0:00:02]} 56... d5 {[%clk
0:00:06.6]} 57. Kh7 {[%clk 0:00:01.5]} 57... e5 {[%clk 0:00:05.6]} 58. Rg6
{[%clk 0:00:01.5]} 58... Rh4+ {[%clk 0:00:05.1]} 59. Rh6 {[%clk 0:00:01.9]}
59... Rg4 {[%clk 0:00:04.9]} 60. Rg6 {[%clk 0:00:02.3]} 60... Rh4+ {[%clk
0:00:05]} 61. Rh6 {[%clk 0:00:02.9]} 61... Rg4 {[%clk 0:00:04]} 62. Rg6 {[%clk
0:00:03.3]} 1/2-1/2

[Event "Early-Titled-Tuesday-Blitz-April-23-2024"]
[Site "Chess.com"]
[Date "2024.04.23"]
[Round "5"]
[White "Lupul_Cenusiu"]
[Black "alpope"]
[Result "1/2-1/2"]
[WhiteElo "2676"]
[BlackElo "2513"]
[TimeControl "180+1"]
[EndTime "8:58:41 PDT"]
[Termination "Game drawn by repetition"]

1. e4 {[%clk 0:03:00.9]} 1... d6 {[%clk 0:02:59.5]} 2. d4 {[%clk 0:03:01]} 2...
Nf6 {[%clk 0:03:00.1]} 3. Nc3 {[%clk 0:03:01.7]} 3... e5 {[%clk 0:03:00.6]} 4.
Nf3 {[%clk 0:03:01]} 4... Nbd7 {[%clk 0:03:00.5]} 5. g3 {[%clk 0:03:00.2]} 5...
Be7 {[%clk 0:02:58.5]} 6. Bg2 {[%clk 0:03:00]} 6... O-O {[%clk 0:02:58.9]} 7.
O-O {[%clk 0:03:00.3]} 7... c6 {[%clk 0:02:59.2]} 8. a4 {[%clk 0:02:53.8]} 8...
Qc7 {[%clk 0:02:57.4]} 9. a5 {[%clk 0:02:49.7]} 9... Re8 {[%clk 0:02:54.3]} 10.
h3 {[%clk 0:02:48.4]} 10... h6 {[%clk 0:02:54.1]} 11. Be3 {[%clk 0:02:48.8]}
11... Nf8 {[%clk 0:02:52.5]} 12. Qd2 {[%clk 0:02:43.7]} 12... Ng6 {[%clk
0:02:45.8]} 13. Ne1 {[%clk 0:02:36.1]} 13... Bf8 {[%clk 0:02:22]} 14. f4 {[%clk
0:02:29.2]} 14... exd4 {[%clk 0:02:13.5]} 15. Bxd4 {[%clk 0:02:27.4]} 15... Nh5
{[%clk 0:02:12.9]} 16. Kh2 {[%clk 0:02:21.9]} 16... d5 {[%clk 0:01:58.5]} 17.
exd5 {[%clk 0:02:13.6]} 17... c5 {[%clk 0:01:58.6]} 18. Bf2 {[%clk 0:02:06.5]}
18... a6 {[%clk 0:01:48.1]} 19. d6 {[%clk 0:01:27.9]} 19... Bxd6 {[%clk
0:01:41.4]} 20. Nd5 {[%clk 0:01:28.2]} 20... Qb8 {[%clk 0:01:32.1]} 21. Kh1
{[%clk 0:01:07.2]} 21... Be6 {[%clk 0:01:00.5]} 22. Rd1 {[%clk 0:01:00.1]} 22...
Bxd5 {[%clk 0:00:39.6]} 23. Qxd5 {[%clk 0:01:00.1]} 23... Bf8 {[%clk 0:00:31.4]}
24. Qxb7 {[%clk 0:00:47]} 24... Qxb7 {[%clk 0:00:32.3]} 25. Bxb7 {[%clk
0:00:47.5]} 25... Rab8 {[%clk 0:00:32.4]} 26. Bxa6 {[%clk 0:00:48.1]} 26... Rxb2
{[%clk 0:00:32.9]} 27. Bc4 {[%clk 0:00:45.8]} 27... Nf6 {[%clk 0:00:25.7]} 28.
Bb3 {[%clk 0:00:42.9]} 28... c4 {[%clk 0:00:18.5]} 29. Bd4 {[%clk 0:00:36.8]}
29... cxb3 {[%clk 0:00:12.3]} 30. Bxb2 {[%clk 0:00:36.8]} 30... Ne4 {[%clk
0:00:13]} 31. Rd3 {[%clk 0:00:32.4]} 31... Bc5 {[%clk 0:00:10.1]} 32. Kg2 {[%clk
0:00:24.9]} 32... h5 {[%clk 0:00:05]} 33. cxb3 {[%clk 0:00:18.2]} 33... h4
{[%clk 0:00:05]} 34. g4 {[%clk 0:00:16.6]} 34... Ng3 {[%clk 0:00:04.8]} 35. Rxg3
{[%clk 0:00:11.8]} 35... Re2+ {[%clk 0:00:04.2]} 36. Kf3 {[%clk 0:00:08.8]}
36... Re3+ {[%clk 0:00:04.6]} 37. Kg2 {[%clk 0:00:07.5]} 37... Re2+ {[%clk
0:00:05]} 38. Kf3 {[%clk 0:00:07.6]} 38... Re3+ {[%clk 0:00:05.3]} 39. Kg2
{[%clk 0:00:07.8]} 39... Rxg3+ {[%clk 0:00:05.8]} 40. Kh2 {[%clk 0:00:07.8]}
40... Rxb3 {[%clk 0:00:06.3]} 41. Bc1 {[%clk 0:00:04.2]} 41... Rb5 {[%clk
0:00:05.4]} 42. a6 {[%clk 0:00:01.9]} 42... Ra5 {[%clk 0:00:05.8]} 43. Nd3
{[%clk 0:00:02.5]} 43... Bd6 {[%clk 0:00:05.4]} 44. Kh1 {[%clk 0:00:02.3]} 44...
Rxa6 {[%clk 0:00:05.7]} 45. f5 {[%clk 0:00:02.9]} 45... Ne5 {[%clk 0:00:05.4]}
46. Nxe5 {[%clk 0:00:03.4]} 46... Bxe5 {[%clk 0:00:06.3]} 47. Be3 {[%clk
0:00:02.6]} 47... Ra3 {[%clk 0:00:04.8]} 48. Bf2 {[%clk 0:00:03]} 48... Rxh3+
{[%clk 0:00:04.7]} 49. Kg2 {[%clk 0:00:03.5]} 49... Ra3 {[%clk 0:00:04.7]} 50.
Bxh4 {[%clk 0:00:04]} 50... Ra2+ {[%clk 0:00:05.4]} 51. Rf2 {[%clk 0:00:03.8]}
51... Rxf2+ {[%clk 0:00:05.7]} 52. Bxf2 {[%clk 0:00:04.7]} 52... g6 {[%clk
0:00:06.3]} 53. Kf3 {[%clk 0:00:04.8]} 53... gxf5 {[%clk 0:00:06.4]} 54. gxf5
{[%clk 0:00:05.7]} 54... f6 {[%clk 0:00:06]} 55. Ke4 {[%clk 0:00:06.3]} 55...
Kf7 {[%clk 0:00:06.3]} 56. Bc5 {[%clk 0:00:05.6]} 56... Bc7 {[%clk 0:00:06.5]}
57. Bd4 {[%clk 0:00:05.6]} 57... Bg3 {[%clk 0:00:06.5]} 58. Ba7 {[%clk
0:00:06.1]} 58... Bh2 {[%clk 0:00:06.9]} 59. Bd4 {[%clk 0:00:06.5]} 59... Bg3
{[%clk 0:00:07.5]} 60. Be3 {[%clk 0:00:06.6]} 60... Bh2 {[%clk 0:00:08]} 61. Bd4
{[%clk 0:00:06.7]} 61... Bg3 {[%clk 0:00:08.5]} 1/2-1/2

[Event "Early-Titled-Tuesday-Blitz-April-23-2024"]
[Site "Chess.com"]
[Date "2024.04.23"]
[Round "5"]
[White "ImportedItalianMaple"]
[Black "Silent-Killer100"]
[Result "0-1"]
[WhiteElo "2451"]
[BlackElo "2612"]
[TimeControl "180+1"]
[EndTime "8:58:43 PDT"]
[Termination "Silent-Killer100 won on time"]

1. e4 {[%clk 0:02:57.3]} 1... b6 {[%clk 0:03:00.9]} 2. d4 {[%clk 0:02:55.8]}
2... Bb7 {[%clk 0:03:01.2]} 3. Nc3 {[%clk 0:02:55.9]} 3... d6 {[%clk 0:03:00.8]}
4. Be3 {[%clk 0:02:45.3]} 4... Nd7 {[%clk 0:03:00.9]} 5. f4 {[%clk 0:02:44.4]}
5... g6 {[%clk 0:03:00.2]} 6. Bc4 {[%clk 0:02:39.6]} 6... Bg7 {[%clk 0:03:00]}
7. Nf3 {[%clk 0:02:39.5]} 7... e6 {[%clk 0:03:00]} 8. O-O {[%clk 0:02:35.6]}
8... Ne7 {[%clk 0:03:00.1]} 9. f5 {[%clk 0:02:31.1]} 9... exf5 {[%clk
0:02:57.4]} 10. Nh4 {[%clk 0:02:30.9]} 10... O-O {[%clk 0:02:52.5]} 11. exf5
{[%clk 0:02:30.8]} 11... d5 {[%clk 0:02:48.8]} 12. Bd3 {[%clk 0:02:30.7]} 12...
Nc6 {[%clk 0:02:47]} 13. Qg4 {[%clk 0:02:25.3]} 13... Nf6 {[%clk 0:02:35.8]} 14.
Qh3 {[%clk 0:02:24.7]} 14... Re8 {[%clk 0:02:28.9]} 15. fxg6 {[%clk 0:02:17.4]}
15... fxg6 {[%clk 0:02:20.8]} 16. Nxg6 {[%clk 0:02:17.2]} 16... hxg6 {[%clk
0:01:54.5]} 17. Bxg6 {[%clk 0:02:18.1]} 17... Bc8 {[%clk 0:01:54.9]} 18. Qg3
{[%clk 0:01:53.1]} 18... Ng4 {[%clk 0:01:20.8]} 19. Bf7+ {[%clk 0:01:48.4]}
19... Kh8 {[%clk 0:01:12.6]} 20. Bf4 {[%clk 0:01:04.9]} 20... Nxd4 {[%clk
0:00:53.2]} 21. Qh3+ {[%clk 0:00:53.6]} 21... Nh6 {[%clk 0:00:51.5]} 22. Qh5
{[%clk 0:00:53.8]} 22... Bg4 {[%clk 0:00:49.6]} 23. Qg6 {[%clk 0:00:40.4]} 23...
Bf5 {[%clk 0:00:34.6]} 24. Qh5 {[%clk 0:00:35.4]} 24... Bg4 {[%clk 0:00:35]} 25.
Qg6 {[%clk 0:00:16.9]} 25... Nxf7 {[%clk 0:00:35.2]} 26. Qxg4 {[%clk 0:00:15.6]}
26... Kg8 {[%clk 0:00:27]} 27. Rae1 {[%clk 0:00:13.3]} 27... Qf6 {[%clk
0:00:24.5]} 28. Be5 {[%clk 0:00:11.8]} 28... Nxe5 {[%clk 0:00:22.7]} 29. Qg3
{[%clk 0:00:11]} 29... Qh6 {[%clk 0:00:20]} 30. Nxd5 {[%clk 0:00:11.2]} 30...
Rac8 {[%clk 0:00:18.3]} 31. c3 {[%clk 0:00:10.2]} 31... Ndc6 {[%clk 0:00:16.9]}
32. Nf6+ {[%clk 0:00:10.7]} 32... Kh8 {[%clk 0:00:17.3]} 33. Nxe8 {[%clk
0:00:08.5]} 33... Rxe8 {[%clk 0:00:18.2]} 34. Rf4 {[%clk 0:00:06.6]} 34... Kg8
{[%clk 0:00:18.3]} 35. Rh4 {[%clk 0:00:06.7]} 35... Qf6 {[%clk 0:00:17]} 36.
Rhe4 {[%clk 0:00:07.2]} 36... Qd6 {[%clk 0:00:15.8]} 37. h3 {[%clk 0:00:07.6]}
37... Qc5+ {[%clk 0:00:16.3]} 38. Kh2 {[%clk 0:00:07.6]} 38... Qd5 {[%clk
0:00:15.4]} 39. b3 {[%clk 0:00:07.2]} 39... Qd6 {[%clk 0:00:15.1]} 40. c4 {[%clk
0:00:07.6]} 40... Kh8 {[%clk 0:00:14.4]} 41. Rh4+ {[%clk 0:00:07.7]} 41... Kg8
{[%clk 0:00:14.5]} 42. Rhe4 {[%clk 0:00:08.6]} 42... Re7 {[%clk 0:00:15]} 43.
R4e3 {[%clk 0:00:08.5]} 43... Nd4 {[%clk 0:00:14]} 44. Re4 {[%clk 0:00:08.8]}
44... Nf5 {[%clk 0:00:14.1]} 45. Qf4 {[%clk 0:00:08.5]} 45... Nh6 {[%clk
0:00:09.5]} 46. Qg3 {[%clk 0:00:08.3]} 46... Nhf7 {[%clk 0:00:09.5]} 47. Kh1
{[%clk 0:00:07.2]} 47... Qd2 {[%clk 0:00:08.8]} 48. Qh4 {[%clk 0:00:05.5]} 48...
Qd6 {[%clk 0:00:09.1]} 49. Qg3 {[%clk 0:00:05.5]} 49... Qf6 {[%clk 0:00:08.7]}
50. Qh2 {[%clk 0:00:05]} 50... Qf5 {[%clk 0:00:09.1]} 51. Qg3 {[%clk 0:00:05.5]}
51... Qh7 {[%clk 0:00:08.3]} 52. Rh4 {[%clk 0:00:05.7]} 52... Qc2 {[%clk
0:00:07.7]} 53. Rhe4 {[%clk 0:00:06]} 53... Qxa2 {[%clk 0:00:08]} 54. Qh4 {[%clk
0:00:06.5]} 54... Kf8 {[%clk 0:00:06.8]} 55. Qh7 {[%clk 0:00:05.9]} 55... Qxb3
{[%clk 0:00:06.9]} 56. Rf1 {[%clk 0:00:06.4]} 56... Qd3 {[%clk 0:00:05.8]} 57.
Ref4 {[%clk 0:00:07.1]} 57... Qxh7 {[%clk 0:00:05.8]} 0-1

[Event "Early-Titled-Tuesday-Blitz-April-23-2024"]
[Site "Chess.com"]
[Date "2024.04.23"]
[Round "5"]
[White "mertfelin"]
[Black "AsselLesbekova"]
[Result "0-1"]
[WhiteElo "2263"]
[BlackElo "2443"]
[TimeControl "180+1"]
[EndTime "8:58:46 PDT"]
[Termination "AsselLesbekova won by resignation"]

1. e4 {[%clk 0:02:59.2]} 1... e5 {[%clk 0:02:59.9]} 2. Nf3 {[%clk 0:02:59.7]}
2... Nf6 {[%clk 0:03:00.3]} 3. Nxe5 {[%clk 0:03:00.1]} 3... Nxe4 {[%clk
0:03:00.5]} 4. Qe2 {[%clk 0:03:00.2]} 4... Qe7 {[%clk 0:03:00.9]} 5. Qxe4 {[%clk
0:03:00.9]} 5... d6 {[%clk 0:03:01.5]} 6. d4 {[%clk 0:03:01.7]} 6... dxe5 {[%clk
0:03:02]} 7. dxe5 {[%clk 0:03:02.6]} 7... Nc6 {[%clk 0:03:02.5]} 8. Nc3 {[%clk
0:03:03.4]} 8... Qxe5 {[%clk 0:03:02]} 9. Qxe5+ {[%clk 0:03:04.1]} 9... Nxe5
{[%clk 0:03:02.7]} 10. Bf4 {[%clk 0:03:04.9]} 10... Bd6 {[%clk 0:03:02.5]} 11.
Bg3 {[%clk 0:03:05.6]} 11... Bd7 {[%clk 0:02:59.5]} 12. Ne4 {[%clk 0:02:55.1]}
12... O-O-O {[%clk 0:02:53.2]} 13. O-O-O {[%clk 0:02:48.8]} 13... Bc6 {[%clk
0:02:46.7]} 14. Nxd6+ {[%clk 0:02:47.3]} 14... cxd6 {[%clk 0:02:47.3]} 15. f3
{[%clk 0:02:45.9]} 15... f6 {[%clk 0:02:42.9]} 16. Be2 {[%clk 0:02:45]} 16...
Rhe8 {[%clk 0:02:42.6]} 17. Rhe1 {[%clk 0:02:45.5]} 17... Kc7 {[%clk 0:02:40.9]}
18. b3 {[%clk 0:02:45.9]} 18... b6 {[%clk 0:02:39.6]} 19. Bf1 {[%clk 0:02:32.2]}
19... g5 {[%clk 0:02:30.3]} 20. Rd4 {[%clk 0:02:25]} 20... Kc8 {[%clk
0:02:12.4]} 21. Red1 {[%clk 0:02:17.6]} 21... d5 {[%clk 0:02:12.7]} 22. Ba6+
{[%clk 0:02:15.9]} 22... Kc7 {[%clk 0:02:03.3]} 23. a4 {[%clk 0:02:11.6]} 23...
h5 {[%clk 0:01:58.1]} 24. h4 {[%clk 0:02:09.3]} 24... Rg8 {[%clk 0:01:52]} 25.
hxg5 {[%clk 0:01:53.2]} 25... Rxg5 {[%clk 0:01:50.5]} 26. Bh4 {[%clk 0:01:53]}
26... Rxg2 {[%clk 0:01:47.8]} 27. Bxf6 {[%clk 0:01:49.3]} 27... Re8 {[%clk
0:01:46.9]} 28. f4 {[%clk 0:01:27.7]} 28... Ng4 {[%clk 0:01:38.2]} 29. Bg5
{[%clk 0:01:10]} 29... Ne3 {[%clk 0:01:35.5]} 30. R1d2 {[%clk 0:01:10.6]} 30...
Rg1+ {[%clk 0:01:23.3]} 31. Kb2 {[%clk 0:01:10.6]} 31... Nf5 {[%clk 0:01:23.5]}
32. R4d3 {[%clk 0:01:10.4]} 32... Ree1 {[%clk 0:01:16.4]} 33. Rh3 {[%clk
0:00:57.1]} 33... Rb1+ {[%clk 0:01:09.6]} 34. Kc3 {[%clk 0:00:54.3]} 34... d4+
{[%clk 0:01:05.1]} 35. Kb4 {[%clk 0:00:54.9]} 35... Be8 {[%clk 0:01:00.1]} 36.
Bd3 {[%clk 0:00:49.1]} 36... a5+ {[%clk 0:00:59.3]} 37. Kc4 {[%clk 0:00:39.3]}
37... Bf7+ {[%clk 0:00:56.4]} 38. Kb5 {[%clk 0:00:39.6]} 38... Nd6+ {[%clk
0:00:54.2]} 39. Ka6 {[%clk 0:00:39.4]} 39... Bd5 {[%clk 0:00:51.8]} 40. Bd8+
{[%clk 0:00:21.1]} 40... Kxd8 {[%clk 0:00:44.9]} 41. Rxh5 {[%clk 0:00:21.6]}
41... Bf7 {[%clk 0:00:32.7]} 42. Re5 {[%clk 0:00:11.6]} 42... Rbe1 {[%clk
0:00:25.4]} 43. Rde2 {[%clk 0:00:11.3]} 43... Rxe2 {[%clk 0:00:24.2]} 44. Rxe2
{[%clk 0:00:12]} 44... Kd7 {[%clk 0:00:10.3]} 45. Kxb6 {[%clk 0:00:12.1]} 45...
Rg8 {[%clk 0:00:10]} 46. Kc5 {[%clk 0:00:12.2]} 46... Rf8 {[%clk 0:00:06.8]} 47.
Kxd4 {[%clk 0:00:11.7]} 47... Be6 {[%clk 0:00:07.4]} 48. Ke5 {[%clk 0:00:09.3]}
48... Bf5 {[%clk 0:00:06.9]} 49. Ba6 {[%clk 0:00:03.8]} 49... Bg6 {[%clk
0:00:05.4]} 50. Rf2 {[%clk 0:00:03.5]} 50... Rf5+ {[%clk 0:00:05.9]} 51. Kd4
{[%clk 0:00:03.7]} 51... Kc6 {[%clk 0:00:06]} 52. c4 {[%clk 0:00:03.2]} 52...
Kb6 {[%clk 0:00:05.5]} 53. Bb5 {[%clk 0:00:03.5]} 53... Nb7 {[%clk 0:00:05.2]}
54. Bd7 {[%clk 0:00:03.2]} 54... Rf6 {[%clk 0:00:05.5]} 55. Kc3 {[%clk
0:00:02.6]} 55... Nc5 {[%clk 0:00:05.1]} 56. Bg4 {[%clk 0:00:02.5]} 56... Ne4+
{[%clk 0:00:05.4]} 0-1

[Event "Early-Titled-Tuesday-Blitz-April-23-2024"]
[Site "Chess.com"]
[Date "2024.04.23"]
[Round "5"]
[White "GlavkonVVS"]
[Black "McCarthyStone"]
[Result "1-0"]
[WhiteElo "2600"]
[BlackElo "2406"]
[TimeControl "180+1"]
[EndTime "8:58:52 PDT"]
[Termination "GlavkonVVS won by checkmate"]

1. c4 {[%clk 0:03:00.9]} 1... d6 {[%clk 0:02:58.5]} 2. Nc3 {[%clk 0:03:00.9]}
2... e5 {[%clk 0:02:59]} 3. g3 {[%clk 0:03:00.6]} 3... f5 {[%clk 0:02:59]} 4.
Bg2 {[%clk 0:03:01]} 4... Be7 {[%clk 0:02:59.6]} 5. d3 {[%clk 0:03:01.3]} 5...
Nf6 {[%clk 0:03:00.1]} 6. Rb1 {[%clk 0:03:01.1]} 6... O-O {[%clk 0:03:00.8]} 7.
b4 {[%clk 0:03:00.9]} 7... Qe8 {[%clk 0:02:58.2]} 8. Nf3 {[%clk 0:02:58.7]} 8...
Kh8 {[%clk 0:02:58.2]} 9. h4 {[%clk 0:02:54.3]} 9... a5 {[%clk 0:02:52.8]} 10.
b5 {[%clk 0:02:48.9]} 10... Nbd7 {[%clk 0:02:51.5]} 11. Ba3 {[%clk 0:02:46]}
11... Rb8 {[%clk 0:02:49.6]} 12. Ng5 {[%clk 0:02:39.5]} 12... Bd8 {[%clk
0:02:46.9]} 13. e3 {[%clk 0:02:26.3]} 13... Ng4 {[%clk 0:02:44.5]} 14. Nd5
{[%clk 0:02:04.9]} 14... h6 {[%clk 0:02:34.1]} 15. Nf3 {[%clk 0:02:01.2]} 15...
b6 {[%clk 0:02:34.5]} 16. Bb2 {[%clk 0:01:49.6]} 16... Nc5 {[%clk 0:02:28.7]}
17. O-O {[%clk 0:01:46.6]} 17... Qg6 {[%clk 0:02:18.9]} 18. d4 {[%clk
0:01:46.1]} 18... Ne4 {[%clk 0:02:16.9]} 19. dxe5 {[%clk 0:01:45.2]} 19... Ngxf2
{[%clk 0:02:02]} 20. Rxf2 {[%clk 0:01:43.4]} 20... Qxg3 {[%clk 0:02:02.3]} 21.
Qe1 {[%clk 0:01:35.7]} 21... Qg4 {[%clk 0:01:46.4]} 22. Rd2 {[%clk 0:01:09.9]}
22... Nxd2 {[%clk 0:01:22.7]} 23. Qxd2 {[%clk 0:01:06.7]} 23... Bxh4 {[%clk
0:01:22.6]} 24. Nxh4 {[%clk 0:01:06]} 24... Qxh4 {[%clk 0:01:23.5]} 25. Qd4
{[%clk 0:01:01.8]} 25... Qxd4 {[%clk 0:01:04.4]} 26. Bxd4 {[%clk 0:01:01.2]}
26... dxe5 {[%clk 0:01:04.9]} 27. Bxe5 {[%clk 0:01:01.5]} 27... Be6 {[%clk
0:00:57.9]} 28. Bxc7 {[%clk 0:00:59.3]} 28... Rbc8 {[%clk 0:00:58.2]} 29. Rc1
{[%clk 0:00:54.4]} 29... Rf7 {[%clk 0:00:22.8]} 30. Bxb6 {[%clk 0:00:53.5]}
30... Rb7 {[%clk 0:00:20.2]} 31. Bxa5 {[%clk 0:00:42]} 31... Rxb5 {[%clk
0:00:20.3]} 32. cxb5 {[%clk 0:00:42.3]} 32... Rxc1+ {[%clk 0:00:21.2]} 33. Kh2
{[%clk 0:00:42.8]} 33... Rc2 {[%clk 0:00:14.5]} 34. Nb4 {[%clk 0:00:39.4]} 34...
Rb2 {[%clk 0:00:12.1]} 35. b6 {[%clk 0:00:37.7]} 35... Bc8 {[%clk 0:00:09.4]}
36. Kg3 {[%clk 0:00:37.3]} 36... g5 {[%clk 0:00:07]} 37. b7 {[%clk 0:00:34.6]}
37... Bxb7 {[%clk 0:00:07.6]} 38. Bxb7 {[%clk 0:00:34.4]} 38... Kh7 {[%clk
0:00:07.3]} 39. a3 {[%clk 0:00:32.7]} 39... Rb3 {[%clk 0:00:06.2]} 40. a4 {[%clk
0:00:31.4]} 40... Rxe3+ {[%clk 0:00:05.8]} 41. Kf2 {[%clk 0:00:31.7]} 41... Ra3
{[%clk 0:00:06.2]} 42. Bc6 {[%clk 0:00:31.6]} 42... Kg6 {[%clk 0:00:06.5]} 43.
Nd5 {[%clk 0:00:31.1]} 43... h5 {[%clk 0:00:05.7]} 44. Bb4 {[%clk 0:00:30.5]}
44... Ra2+ {[%clk 0:00:05.6]} 45. Kf1 {[%clk 0:00:29.7]} 45... h4 {[%clk
0:00:06.5]} 46. Nc3 {[%clk 0:00:28.5]} 46... Ra1+ {[%clk 0:00:05.6]} 47. Kg2
{[%clk 0:00:28.8]} 47... Rb1 {[%clk 0:00:05]} 48. Nxb1 {[%clk 0:00:28]} 48... g4
{[%clk 0:00:04.9]} 49. Bd6 {[%clk 0:00:27.8]} 49... Kg5 {[%clk 0:00:04.8]} 50.
Nd2 {[%clk 0:00:27.5]} 50... f4 {[%clk 0:00:05.3]} 51. Ne4+ {[%clk 0:00:26.5]}
51... Kf5 {[%clk 0:00:05.1]} 52. Bd7+ {[%clk 0:00:26.6]} 52... Kxe4 {[%clk
0:00:05.1]} 53. Bxg4 {[%clk 0:00:26.7]} 53... Kd5 {[%clk 0:00:04.6]} 54. Bxf4
{[%clk 0:00:26.1]} 54... Kc5 {[%clk 0:00:05.3]} 55. Bd2 {[%clk 0:00:26.6]} 55...
Kb6 {[%clk 0:00:05.2]} 56. Kh3 {[%clk 0:00:26.9]} 56... Ka6 {[%clk 0:00:05.5]}
57. Kxh4 {[%clk 0:00:27.3]} 57... Kb6 {[%clk 0:00:06.4]} 58. Kg5 {[%clk
0:00:27.8]} 58... Ka6 {[%clk 0:00:06.9]} 59. Kf6 {[%clk 0:00:28.4]} 59... Kb7
{[%clk 0:00:07.8]} 60. Ke5 {[%clk 0:00:28.9]} 60... Ka6 {[%clk 0:00:08.7]} 61.
Kd5 {[%clk 0:00:29.5]} 61... Ka7 {[%clk 0:00:09.6]} 62. Kc5 {[%clk 0:00:29.8]}
62... Ka8 {[%clk 0:00:10.5]} 63. a5 {[%clk 0:00:30.4]} 63... Ka7 {[%clk
0:00:11.1]} 64. Kb5 {[%clk 0:00:28.8]} 64... Ka8 {[%clk 0:00:12]} 65. a6 {[%clk
0:00:28.8]} 65... Ka7 {[%clk 0:00:12.9]} 66. Be3+ {[%clk 0:00:28.8]} 66... Ka8
{[%clk 0:00:13.8]} 67. Bf3+ {[%clk 0:00:28.1]} 67... Kb8 {[%clk 0:00:14.7]} 68.
Bf4+ {[%clk 0:00:28.6]} 68... Ka7 {[%clk 0:00:14.9]} 69. Be3+ {[%clk 0:00:27.9]}
69... Kb8 {[%clk 0:00:15.8]} 70. Bb6 {[%clk 0:00:27.2]} 70... Kc8 {[%clk
0:00:15.4]} 71. a7 {[%clk 0:00:27.7]} 71... Kd7 {[%clk 0:00:16]} 72. a8=Q {[%clk
0:00:28.1]} 72... Ke6 {[%clk 0:00:16.8]} 73. Qd5+ {[%clk 0:00:28.5]} 73... Ke7
{[%clk 0:00:16.4]} 74. Be4 {[%clk 0:00:28.9]} 74... Kf6 {[%clk 0:00:17.3]} 75.
Bd4+ {[%clk 0:00:28.7]} 75... Ke7 {[%clk 0:00:18.2]} 76. Qe5+ {[%clk 0:00:28.7]}
76... Kf8 {[%clk 0:00:19.1]} 77. Qf6+ {[%clk 0:00:28.7]} 77... Ke8 {[%clk
0:00:19.6]} 78. Bc6# {[%clk 0:00:28.6]} 1-0